bitfinex-derivatives/quotes_BTCF0:USTF0_20250426
["timestamp","ask_amount","ask_price","bid_price","bid_amount"]
[1745627429744,0.2943885,94778.0,94777.0,0.38669385]
[1745627429944,0.2943885,94778.0,94777.0,0.74749385]
[1745627430445,0.2943885,94778.0,94777.0,0.67049385]
[1745627430642,0.6580885,94778.0,94777.0,0.67049385]
[1745627430843,0.6580885,94778.0,94777.0,0.59949385]
[1745627431646,0.4380885,94778.0,94777.0,0.59949385]
[1745627432145,0.6060885,94778.0,94777.0,0.59949385]
[1745627433449,0.6060885,94778.0,94777.0,0.23869385]
[1745627434750,0.8560885,94778.0,94777.0,0.23869385]
[1745627436639,0.6460885,94778.0,94777.0,0.23869385]
[1745627437044,0.4352,94778.0,94777.0,0.31329385]
[1745627437239,0.4780885,94778.0,94777.0,0.31329385]
[1745627437439,0.4780885,94778.0,94777.0,0.39079385]
[1745627438151,0.2672,94778.0,94777.0,0.39079385]
[1745627438649,0.4780885,94778.0,94777.0,0.39079385]
[1745627439044,0.4780885,94778.0,94777.0,0.23869385]
[1745627449473,0.2672,94778.0,94777.0,0.23869385]
[1745627450070,0.3415,94778.0,94777.0,0.23869385]
[1745627450274,0.2678,94778.0,94777.0,0.23869385]
[1745627450574,0.2678,94778.0,94777.0,0.45819385]
[1745627451675,0.1935,94778.0,94777.0,0.45819385]
[1745627455381,0.0735,94778.0,94777.0,0.45819385]
[1745627457088,0.0835,94778.0,94777.0,0.45819385]
[1745627460280,0.012,94778.0,94777.0,0.45819385]
[1745627460476,0.002,94778.0,94777.0,0.45819385]
[1745627460674,1.25949811,94820.0,94784.0,0.2108752]
[1745627460872,0.02540001,94801.0,94787.0,0.0527167]
[1745627461077,0.32,94801.0,94800.0,0.2108396]
[1745627461279,0.06572,94806.0,94805.0,0.2108285]
[1745627461479,0.18572,94806.0,94805.0,0.5716285]
[1745627462186,0.07092,94818.0,94816.0,0.210804]
[1745627462373,0.14642861,94817.0,94816.0,0.210804]
[1745627462580,0.14642861,94817.0,94816.0,0.16075657]
[1745627462979,0.14642861,94817.0,94816.0,0.30655657]
[1745627463173,0.14642861,94817.0,94816.0,0.2880938]
[1745627463574,0.14742861,94817.0,94816.0,0.2880938]
[1745627464082,0.14742861,94817.0,94816.0,0.4560938]
[1745627464283,0.14642861,94817.0,94816.0,0.4560938]
[1745627464482,0.14642861,94817.0,94816.0,0.4570938]
[1745627464674,0.14642861,94817.0,94816.0,0.4580938]
[1745627465880,0.14742861,94817.0,94816.0,0.4570938]
[1745627466281,0.14742861,94817.0,94816.0,0.2890938]
[1745627466879,0.09842861,94817.0,94816.0,0.2880938]
[1745627467075,0.09842861,94817.0,94816.0,0.4560938]
[1745627467284,0.002,94817.0,94816.0,0.4560938]
[1745627467688,0.002,94817.0,94816.0,0.8168938]
[1745627468882,0.001,94817.0,94816.0,0.8168938]
[1745627469081,0.002,94817.0,94816.0,0.8168938]
[1745627470287,0.002,94817.0,94816.0,0.6488938]
[1745627476191,0.2108085,94814.0,94813.0,0.419]
[1745627476489,0.5108085,94814.0,94813.0,0.419]
[1745627477289,0.6788085,94814.0,94813.0,0.419]
[1745627477490,0.210824,94808.0,94807.0,0.0527057]
[1745627477693,0.560824,94808.0,94807.0,0.0527057]
[1745627477891,0.703124,94808.0,94807.0,0.0527057]
[1745627478190,0.871124,94808.0,94807.0,0.0527057]
[1745627478892,0.871124,94808.0,94807.0,0.2635297]
[1745627479296,0.871124,94808.0,94807.0,0.2645297]
[1745627479785,0.871124,94808.0,94807.0,0.2655297]
[1745627480891,0.871124,94808.0,94807.0,0.212824]
[1745627482997,0.871124,94808.0,94807.0,0.002]
[1745627485194,0.871124,94808.0,94807.0,0.212824]
[1745627488804,0.871124,94808.0,94807.0,0.002]
[1745627489196,0.2108641,94789.0,94788.0,0.5716625]
[1745627489394,0.2508641,94789.0,94788.0,0.694279]
[1745627490303,0.4188641,94789.0,94788.0,0.694279]
[1745627490502,0.4188641,94789.0,94788.0,0.699279]
[1745627491306,0.4188641,94789.0,94788.0,0.700279]
[1745627491799,0.4895641,94789.0,94788.0,0.700279]
[1745627492192,0.3215641,94789.0,94788.0,0.700279]
[1745627492393,0.3215641,94789.0,94788.0,0.696279]
[1745627495102,0.3215641,94789.0,94788.0,0.335479]
[1745627495302,0.3215641,94789.0,94788.0,0.0719]
[1745627495493,0.5815641,94789.0,94788.0,0.2827663]
[1745627495694,0.5815641,94789.0,94788.0,0.0719]
[1745627496005,0.6540641,94789.0,94788.0,0.2827663]
[1745627497202,0.3515641,94789.0,94788.0,0.2827663]
[1745627497401,0.07,94789.0,94788.0,0.2827663]
[1745627497607,0.2808641,94789.0,94788.0,0.2827663]
[1745627500305,0.4488641,94789.0,94788.0,0.2827663]
[1745627501701,0.238,94789.0,94788.0,0.2827663]
[1745627502101,0.07,94789.0,94788.0,0.2827663]
[1745627502809,0.2808641,94789.0,94788.0,0.2827663]
[1745627503909,0.2808641,94789.0,94788.0,0.3574663]
[1745627508405,0.5108641,94789.0,94788.0,0.3574663]
[1745627510020,0.3,94789.0,94788.0,0.3574663]
[1745627510403,0.3762,94789.0,94788.0,0.3574663]
[1745627511011,0.5870641,94789.0,94788.0,0.3574663]
[1745627516815,0.5870641,94789.0,94788.0,0.4317663]
[1745627517219,0.7550641,94789.0,94788.0,0.4317663]
[1745627517924,0.7550641,94789.0,94788.0,0.002]
[1745627518317,0.2108885,94778.0,94765.0,0.4717292]
[1745627518518,0.5108885,94778.0,94777.0,0.08705197]
[1745627518917,0.7290885,94778.0,94777.0,0.24787592]
[1745627519120,0.7290885,94778.0,94777.0,0.41587592]
[1745627519421,0.7954885,94778.0,94777.0,0.41687592]
[1745627519624,0.7954885,94778.0,94777.0,0.41787592]
[1745627520429,0.5846,94778.0,94777.0,0.41787592]
[1745627520614,0.5182,94778.0,94777.0,0.43350084]
[1745627520819,0.7954885,94778.0,94777.0,0.43350084]
[1745627521621,0.5128,94778.0,94777.0,0.43350084]
[1745627522622,0.5128,94778.0,94777.0,0.79430084]
[1745627522827,0.4373,94778.0,94777.0,0.79430084]
[1745627523025,0.3709,94778.0,94777.0,0.79430084]
[1745627523325,0.3709,94778.0,94777.0,0.62630084]
[1745627524425,0.0664,94784.0,94783.0,0.2108774]
[1745627524626,0.1564,94784.0,94783.0,0.2108774]
[1745627525620,0.1574,94784.0,94783.0,0.2108774]
[1745627527525,0.3682752,94784.0,94783.0,0.2108774]
[1745627527727,0.3974,94784.0,94783.0,0.2108774]
[1745627528723,0.4723,94784.0,94783.0,0.2108774]
[1745627533023,0.6831752,94784.0,94783.0,0.2864774]
[1745627533534,0.4723,94784.0,94783.0,0.2864774]
[1745627537429,0.6831752,94784.0,94783.0,0.2864774]
[1745627537632,0.2108774,94783.0,94782.0,0.3608]
[1745627537828,0.6262774,94783.0,94782.0,0.3608]
[1745627538032,0.6963774,94783.0,94782.0,0.3608]
[1745627538331,0.6963774,94783.0,94782.0,0.5716796]
[1745627539233,0.8643774,94783.0,94782.0,0.5716796]
[1745627540933,0.8643774,94783.0,94782.0,0.2108796]
[1745627542639,0.6535,94783.0,94782.0,0.2108796]
[1745627543035,0.5781,94783.0,94782.0,0.2108796]
[1745627543238,0.3608,94791.0,94790.0,0.2108619]
[1745627543540,0.4908,94791.0,94790.0,0.2108619]
[1745627543836,0.5572,94791.0,94790.0,0.2108619]
[1745627544933,0.6214,94791.0,94790.0,0.2807619]
[1745627545331,0.6234,94791.0,94790.0,0.2807619]
[1745627545532,0.2626,94791.0,94790.0,0.2807619]
[1745627547935,0.4734596,94791.0,94790.0,0.2807619]
[1745627549628,0.2626,94791.0,94790.0,0.2807619]
[1745627549830,0.2004,94791.0,94790.0,0.2807619]
[1745627551433,0.6512596,94791.0,94790.0,0.2807619]
[1745627552236,0.7138596,94791.0,94790.0,0.2807619]
[1745627553031,0.7743596,94791.0,94790.0,0.2108619]
[1745627553737,0.2108663,94788.0,94787.0,0.5716638]
[1745627553936,0.5308663,94788.0,94787.0,0.5716638]
[1745627554145,0.5308663,94788.0,94787.0,0.6243808]
[1745627554338,0.32,94788.0,94787.0,0.6243808]
[1745627554536,0.32,94788.0,94787.0,0.6852808]
[1745627555043,0.321,94788.0,94787.0,0.6852808]
[1745627555340,0.5328663,94788.0,94787.0,0.3244808]
[1745627556745,0.5328663,94788.0,94787.0,0.2635808]
[1745627559545,0.2108796,94782.0,94781.0,0.2712765]
[1745627559738,0.5608796,94782.0,94781.0,0.3239964]
[1745627559937,0.2108885,94778.0,94777.0,0.01562492]
[1745627560144,0.2108908,94777.0,94776.0,0.3608]
[1745627560334,0.2109019,94772.0,94771.0,0.0623]
[1745627560539,0.3409019,94772.0,94771.0,0.2732019]
[1745627561040,0.3409019,94772.0,94771.0,0.3937019]
[1745627561235,0.3409019,94772.0,94771.0,0.5617019]
[1745627561539,0.4677019,94772.0,94771.0,0.57712021]
[1745627562546,0.4677019,94772.0,94771.0,0.57912021]
[1745627563639,0.4677019,94772.0,94771.0,0.58112021]
[1745627563834,0.4039019,94772.0,94771.0,0.58112021]
[1745627565242,0.5739019,94772.0,94771.0,0.58112021]
[1745627565641,0.5739019,94772.0,94771.0,0.51882021]
[1745627566645,0.5739019,94772.0,94771.0,0.18741831]
[1745627569551,0.5739019,94772.0,94760.0,0.05378729]
[1745627569552,0.2636546,94764.0,94761.0,0.0607]
[1745627569738,0.6136546,94764.0,94763.0,0.2109213]
[1745627570150,0.6136546,94764.0,94763.0,0.3789213]
[1745627571144,0.6136546,94764.0,94763.0,0.3819213]
[1745627571344,0.5609242,94764.0,94763.0,0.40955135]
[1745627573152,0.5609242,94764.0,94763.0,0.41055135]
[1745627574148,0.35,94764.0,94763.0,0.41055135]
[1745627574543,0.5609197,94764.0,94763.0,0.41055135]
[1745627574746,0.6269597,94764.0,94763.0,0.41055135]
[1745627575848,0.6269597,94764.0,94763.0,0.19963005]
[1745627578951,0.6269597,94764.0,94763.0,0.17429582]
[1745627579351,0.6269597,94764.0,94763.0,0.14666577]
[1745627579653,0.6269597,94764.0,94763.0,0.14466577]
[1745627581255,0.6269597,94764.0,94763.0,0.19816577]
[1745627581950,0.6833597,94764.0,94763.0,0.19816577]
[1745627583559,0.6833597,94764.0,94763.0,0.25496577]
[1745627583858,0.6833597,94764.0,94763.0,0.31226577]
[1745627584254,0.6833597,94764.0,94763.0,0.52318767]
[1745627584449,0.35,94764.0,94763.0,0.52318767]
[1745627584657,0.2108997,94777.0,94776.0,0.2108827]
[1745627584852,0.2109108,94770.0,94769.0,0.2636251]
[1745627585061,0.3336378,94770.0,94769.0,0.5716981]
[1745627585544,0.2809108,94770.0,94769.0,0.6830981]
[1745627586059,0.2809108,94770.0,94769.0,0.8510981]
[1745627586451,0.2819108,94770.0,94769.0,0.8510981]
[1745627587852,0.071,94770.0,94769.0,0.8510981]
[1745627588360,0.2819063,94770.0,94769.0,0.8510981]
[1745627589160,0.071,94770.0,94769.0,0.4902981]
[1745627589458,0.072,94770.0,94769.0,0.4902981]
[1745627591562,0.06588,94774.0,94769.0,0.2794]
[1745627591753,0.12588,94774.0,94769.0,0.2794]
[1745627592060,0.12588,94774.0,94773.0,0.2108997]
[1745627592457,0.2108997,94773.0,94772.0,0.1673]
[1745627592764,0.6355997,94773.0,94772.0,0.1673]
[1745627593148,0.6355997,94773.0,94772.0,0.3353]
[1745627593549,0.6385997,94773.0,94772.0,0.3353]
[1745627595256,0.6385997,94773.0,94772.0,0.168]
[1745627600760,0.6385997,94773.0,94772.0,0.1335342]
[1745627600959,0.2109264,94761.0,94753.0,0.0538]
[1745627601158,0.9217264,94761.0,94753.0,0.0538]
[1745627601865,0.9217264,94761.0,94754.0,0.0563]
[1745627602168,0.2109331,94758.0,94754.0,0.0563]
[1745627602362,0.5768131,94758.0,94754.0,0.0563]
[1745627602956,0.5768131,94758.0,94753.0,0.0538]
[1745627603171,0.210942,94754.0,94753.0,0.0538]
[1745627603366,0.510942,94754.0,94753.0,0.0538]
[1745627604170,0.624142,94754.0,94753.0,0.2218]
[1745627604771,0.624142,94754.0,94753.0,0.2228]
[1745627605459,0.624142,94754.0,94753.0,0.169]
[1745627605659,0.624142,94754.0,94741.0,0.475]
[1745627605660,0.2109687,94742.0,94741.0,0.475]
[1745627605969,0.9776487,94742.0,94741.0,0.475]
[1745627606166,0.9776487,94742.0,94741.0,0.643]
[1745627606470,0.9776487,94742.0,94741.0,0.224]
[1745627607765,0.9776487,94742.0,94741.0,0.227]
[1745627608469,0.9776487,94742.0,94741.0,0.172]
[1745627608860,0.9776487,94742.0,94741.0,0.169]
[1745627609065,0.9776487,94742.0,94741.0,0.17]
[1745627609967,0.9776487,94742.0,94741.0,0.1446586]
[1745627610761,0.9777287,94742.0,94741.0,0.1446586]
[1745627613469,0.2109932,94731.0,94730.0,0.00105563]
[1745627613667,0.5609932,94731.0,94730.0,0.00105563]
[1745627614071,0.5609932,94731.0,94730.0,0.16905563]
[1745627614266,0.6669932,94731.0,94730.0,0.16905563]
[1745627615362,0.6669932,94731.0,94730.0,0.17205563]
[1745627615567,0.6669932,94731.0,94730.0,0.17505563]
[1745627618170,0.6669932,94731.0,94730.0,0.17405563]
[1745627618377,0.6669932,94731.0,94730.0,0.17305563]
[1745627619076,0.6140932,94731.0,94730.0,0.17305563]
[1745627619470,0.6800932,94731.0,94730.0,0.17205563]
[1745627620274,0.6800932,94731.0,94730.0,0.17105563]
[1745627620981,0.6269932,94731.0,94730.0,0.38205103]
[1745627621177,0.416,94731.0,94730.0,0.38205103]
[1745627621682,0.6269932,94731.0,94730.0,0.38205103]
[1745627622068,0.416,94731.0,94730.0,0.38205103]
[1745627622267,0.6269932,94731.0,94730.0,0.38205103]
[1745627622579,0.416,94731.0,94730.0,0.38205103]
[1745627622773,0.03,94731.0,94730.0,0.38205103]
[1745627623081,0.066,94735.0,94734.0,0.2109865]
[1745627623278,0.166,94735.0,94734.0,0.2109865]
[1745627623673,0.166,94735.0,94734.0,0.3222865]
[1745627624269,0.166,94735.0,94734.0,0.4902865]
[1745627624673,0.166,94735.0,94734.0,0.4912865]
[1745627627071,0.16,94754.0,94751.0,0.2636808]
[1745627627280,0.28,94754.0,94753.0,0.2109442]
[1745627627579,0.28,94754.0,94753.0,0.5717442]
[1745627627880,0.066,94761.0,94760.0,0.2109286]
[1745627628080,0.066,94761.0,94760.0,0.3789286]
[1745627628671,0.066,94761.0,94760.0,0.4865286]
[1745627629483,0.068,94761.0,94760.0,0.4865286]
[1745627629978,0.07,94761.0,94760.0,0.4865286]
[1745627631078,0.08,94761.0,94760.0,0.4865286]
[1745627631480,0.07,94761.0,94760.0,0.4865286]
[1745627634778,0.004,94761.0,94760.0,0.5920566]
[1745627634984,0.12472952,94800.0,94770.0,0.0527261]
[1745627634985,0.0562,94785.0,94770.0,0.0527261]
[1745627635281,0.066,94779.0,94778.0,0.2108885]
[1745627635474,0.4468863,94779.0,94778.0,0.2108885]
[1745627635680,0.236,94779.0,94778.0,0.2636885]
[1745627635876,0.236,94779.0,94778.0,0.3188885]
[1745627636077,0.4468863,94779.0,94778.0,0.4868885]
[1745627636281,0.236,94779.0,94778.0,0.4868885]
[1745627636989,0.4528863,94779.0,94778.0,0.4878885]
[1745627637183,0.242,94779.0,94778.0,0.4878885]
[1745627637976,0.3928863,94779.0,94778.0,0.17]
[1745627638178,0.5043863,94779.0,94778.0,0.17]
[1745627638686,0.8651863,94779.0,94778.0,0.17]
[1745627645098,0.8651863,94779.0,94778.0,0.14466642]
[1745627645589,0.2109442,94753.0,94752.0,0.053]
[1745627645792,0.5209442,94753.0,94752.0,0.1097]
[1745627646095,0.5209442,94753.0,94752.0,0.2777]
[1745627647389,0.5209442,94753.0,94752.0,0.2787]
[1745627649201,0.5209442,94753.0,94752.0,0.4896464]
[1745627649393,0.5209442,94753.0,94752.0,0.169]
[1745627649589,0.5730442,94753.0,94752.0,0.169]
[1745627654789,0.5209442,94753.0,94752.0,0.7407464]
[1745627654992,0.31,94753.0,94752.0,0.7407464]
[1745627655599,0.31,94753.0,94752.0,0.8450464]
[1745627655999,0.5209442,94753.0,94752.0,0.8440464]
[1745627656191,0.5239442,94753.0,94752.0,0.8440464]
[1745627656391,0.5239442,94753.0,94752.0,0.4832464]
[1745627656899,0.5259442,94753.0,94752.0,0.4832464]
[1745627659897,0.5219442,94753.0,94752.0,0.4832464]
[1745627660095,0.5239442,94753.0,94752.0,0.4832464]
[1745627663406,0.5239442,94753.0,94752.0,0.168]
[1745627663595,0.7017242,94753.0,94752.0,0.168]
[1745627667406,0.7017242,94753.0,94752.0,0.3789464]
[1745627667407,0.313,94753.0,94752.0,0.3789464]
[1745627667914,0.033,94753.0,94752.0,0.7397464]
[1745627668409,0.2439442,94753.0,94752.0,0.8473464]
[1745627668602,0.033,94753.0,94752.0,0.8473464]
[1745627668803,0.003,94753.0,94752.0,0.8473464]
[1745627670107,0.5839442,94753.0,94752.0,0.168]
[1745627670705,0.5839442,94753.0,94752.0,0.2752]
[1745627672106,0.5839442,94753.0,94752.0,0.168]
[1745627672301,0.6352442,94753.0,94752.0,0.168]
[1745627673212,0.2109575,94747.0,94746.0,0.0525]
[1745627673509,0.8917575,94747.0,94746.0,0.0525]
[1745627674105,1.0451575,94747.0,94746.0,0.0525]
[1745627676207,1.0451575,94747.0,94746.0,0.2205]
[1745627676409,1.1507015,94747.0,94746.0,5e-08]
[1745627677214,0.2109932,94731.0,94730.0,0.00105563]
[1745627677513,0.5981532,94731.0,94730.0,0.00105563]
[1745627678215,0.7036532,94731.0,94730.0,0.16905563]
[1745627678413,0.7036532,94731.0,94730.0,0.17105563]
[1745627679809,0.7036532,94731.0,94730.0,0.17205563]
[1745627683315,0.7036532,94731.0,94730.0,0.17105563]
[1745627683513,0.7046532,94731.0,94730.0,0.17105563]
[1745627683715,0.7046532,94731.0,94730.0,0.16905563]
[1745627685615,1.0654532,94731.0,94730.0,0.16905563]
[1745627688515,0.6537532,94731.0,94730.0,0.16905563]
[1745627689020,0.5855932,94731.0,94730.0,0.16905563]
[1745627689225,0.5875932,94731.0,94730.0,0.16905563]
[1745627689615,0.5895932,94731.0,94730.0,0.16905563]
[1745627692218,0.5895932,94731.0,94730.0,0.168]
[1745627692422,0.5895932,94731.0,94730.0,0.06850813]
[1745627692423,0.6407932,94731.0,94730.0,0.06850813]
[1745627692623,0.6427932,94731.0,94730.0,0.06850813]
[1745627692921,0.6427932,94731.0,94730.0,0.01221783]
[1745627693122,0.2109999,94728.0,94727.0,0.0052783]
[1745627693324,0.9117999,94728.0,94727.0,0.0052783]
[1745627693913,1.0176999,94728.0,94727.0,0.0052783]
[1745627694114,1.0176999,94728.0,94727.0,0.1732783]
[1745627694421,0.9666999,94728.0,94727.0,0.1732783]
[1745627694819,1.0186999,94728.0,94727.0,0.1732783]
[1745627695916,1.0196999,94728.0,94727.0,0.1732783]
[1745627701323,1.0196999,94728.0,94727.0,0.0996018]
[1745627701523,1.0196999,94728.0,94727.0,0.0588704]
[1745627703926,0.9676999,94728.0,94727.0,0.0588704]
[1745627705726,0.7028,94728.0,94727.0,0.0588704]
[1745627705922,0.9137999,94728.0,94727.0,0.0588704]
[1745627707528,0.7028,94728.0,94727.0,0.2698725]
[1745627708139,0.9137999,94728.0,94727.0,0.0588704]
[1745627708629,0.9137999,94728.0,94727.0,0.1681704]
[1745627709030,0.9137999,94728.0,94727.0,0.3791725]
[1745627709328,0.9137999,94728.0,94727.0,0.1681704]
[1745627709717,0.9137999,94728.0,94727.0,0.3791725]
[1745627709917,0.9137999,94728.0,94727.0,0.1681704]
[1745627710330,0.5529999,94728.0,94727.0,0.1681704]
[1745627710638,0.5529999,94728.0,94727.0,0.3791725]
[1745627711322,0.5529999,94728.0,94727.0,0.1681704]
[1745627714319,0.342,94728.0,94727.0,0.1681704]
[1745627715026,0.5529999,94728.0,94727.0,0.1681704]
[1745627716923,0.5529999,94728.0,94727.0,0.3791725]
[1745627717226,0.5529999,94728.0,94727.0,0.1681704]
[1745627718329,0.5529999,94728.0,94727.0,0.3791725]
[1745627719034,0.342,94728.0,94727.0,0.3791725]
[1745627721927,0.5529999,94728.0,94727.0,0.3791725]
[1745627723335,0.342,94728.0,94727.0,0.3791725]
[1745627726435,0.06652,94746.0,94745.0,0.210962]
[1745627726635,0.02488524,94746.0,94745.0,0.571762]
[1745627726831,0.11488524,94746.0,94745.0,0.571762]
[1745627727036,0.11488524,94746.0,94745.0,0.681562]
[1745627727241,0.11488524,94746.0,94745.0,0.849562]
[1745627727834,0.11988524,94746.0,94745.0,0.849562]
[1745627729142,0.12488524,94746.0,94745.0,0.850562]
[1745627729343,0.12288524,94746.0,94745.0,0.850562]
[1745627729640,0.12088524,94746.0,94745.0,0.849562]
[1745627731035,0.03088524,94746.0,94745.0,0.849562]
[1745627733039,0.006,94746.0,94745.0,0.849562]
[1745627736347,0.006,94746.0,94745.0,0.82422536]
[1745627738338,0.0527356,94754.0,94745.0,0.82422536]
[1745627738339,0.5361,94779.0,94745.0,0.744144]
[1745627738539,0.12206,94778.0,94776.0,0.3608]
[1745627738743,0.36,94778.0,94777.0,0.2632908]
[1745627738942,0.36,94778.0,94777.0,0.3745908]
[1745627739136,0.36,94778.0,94777.0,0.5425908]
[1745627739338,0.2776258,94789.0,94780.0,0.2108841]
[1745627739642,0.0813,94781.0,94780.0,0.5716841]
[1745627740346,0.0813,94781.0,94780.0,0.7396841]
[1745627740538,0.5621819,94781.0,94780.0,0.57152602]
[1745627740846,0.3513,94781.0,94780.0,0.57152602]
[1745627741142,0.3513,94781.0,94780.0,0.78241012]
[1745627741336,0.3553,94781.0,94780.0,0.78341012]
[1745627742043,0.5681819,94781.0,94780.0,0.57252602]
[1745627743634,0.6742819,94781.0,94780.0,0.57252602]
[1745627744250,0.6742819,94781.0,94780.0,0.21172602]
[1745627748149,0.7797899,94781.0,94780.0,0.169]
[1745627749047,0.6742819,94781.0,94780.0,0.169]
[1745627749250,0.6220819,94781.0,94780.0,0.169]
[1745627749452,0.6754819,94781.0,94780.0,0.169]
[1745627749656,0.7422419,94781.0,94780.0,0.169]
[1745627753651,0.7422419,94781.0,94780.0,0.1188096]
[1745627753852,0.7422419,94781.0,94752.0,0.1094]
[1745627753853,0.2109442,94753.0,94752.0,0.1094]
[1745627754057,0.5409442,94753.0,94752.0,0.1094]
[1745627754353,0.5409442,94753.0,94752.0,0.2774]
[1745627754752,0.5963442,94753.0,94752.0,0.2774]
[1745627755051,0.6521442,94753.0,94752.0,0.2824]
[1745627756341,0.6521442,94753.0,94752.0,0.2854]
[1745627757558,0.6521442,94753.0,94752.0,0.32193604]
[1745627760061,0.5963442,94753.0,94752.0,0.29659889]
[1745627761659,0.5963442,94753.0,94752.0,0.2781241]
[1745627762855,0.69282722,94753.0,94752.0,0.2781241]
[1745627765847,0.69282722,94753.0,94752.0,0.3303241]
[1745627767557,0.63742722,94753.0,94752.0,0.3303241]
[1745627768059,0.63742722,94753.0,94752.0,0.30498728]
[1745627768262,0.5409442,94753.0,94752.0,0.30498728]
[1745627768461,0.33,94753.0,94752.0,0.30498728]
[1745627768768,0.06676,94759.0,94752.0,0.30498728]
[1745627768769,0.2109341,94758.0,94757.0,0.2109331]
[1745627768965,0.4709341,94758.0,94757.0,0.2109331]
[1745627769154,0.4709341,94758.0,94757.0,0.3789331]
[1745627769755,0.4709341,94758.0,94757.0,0.3819331]
[1745627770069,0.26,94758.0,94757.0,0.3839331]
[1745627770456,0.0527301,94764.0,94763.0,0.2109197]
[1745627770657,0.3836498,94764.0,94763.0,0.5717197]
[1745627771064,0.3836498,94764.0,94763.0,0.7397197]
[1745627771261,0.3836498,94764.0,94763.0,0.8475197]
[1745627772673,0.3836498,94764.0,94763.0,0.8495197]
[1745627773863,0.3309197,94764.0,94763.0,0.8495197]
[1745627774063,0.12,94764.0,94763.0,0.8495197]
[1745627774269,0.12,94764.0,94763.0,0.6386]
[1745627774464,0.3309197,94764.0,94763.0,0.6386]
[1745627775065,0.12,94764.0,94763.0,0.8495219]
[1745627776770,0.12,94764.0,94763.0,0.8241893]
[1745627779372,0.09811103,94764.0,94763.0,0.92971329]
[1745627779563,0.2108945,94776.0,94772.0,0.2109019]
[1745627779759,0.14028,94773.0,94772.0,0.5717019]
[1745627779959,0.14,94773.0,94772.0,0.5717019]
[1745627780172,0.14,94773.0,94772.0,0.7397019]
[1745627780959,0.142,94773.0,94772.0,0.7397019]
[1745627781359,0.142,94773.0,94772.0,0.7931019]
[1745627781666,0.3528997,94773.0,94772.0,0.7931019]
[1745627782463,0.5228997,94773.0,94772.0,0.7931019]
[1745627782968,0.3628997,94773.0,94772.0,0.7931019]
[1745627783760,0.3628997,94773.0,94772.0,0.4323019]
[1745627783960,0.152,94773.0,94772.0,1.1539019]
[1745627788966,0.152,94773.0,94772.0,0.4323019]
[1745627789165,0.152,94773.0,94772.0,1.1539019]
[1745627790275,0.3628997,94773.0,94772.0,1.1539019]
[1745627791169,0.152,94773.0,94772.0,1.1539019]
[1745627791575,0.3628997,94773.0,94772.0,1.1539019]
[1745627791975,0.152,94773.0,94772.0,1.1539019]
[1745627793274,0.002,94773.0,94772.0,1.1539019]
[1745627793471,0.2160681,94788.0,94772.0,0.943]
[1745627793670,0.691503,94788.0,94787.0,0.3608]
[1745627793971,0.758063,94788.0,94787.0,0.3608]
[1745627794171,0.758063,94788.0,94787.0,0.5288]
[1745627794575,0.762063,94788.0,94787.0,0.5288]
[1745627795475,0.760063,94788.0,94787.0,0.5288]
[1745627795875,0.763063,94788.0,94787.0,0.5288]
[1745627796076,0.763063,94788.0,94787.0,0.3608]
[1745627796969,0.2108752,94784.0,94783.0,0.2628771]
[1745627797171,0.5808752,94784.0,94783.0,0.7916771]
[1745627797878,0.5808752,94784.0,94783.0,0.5808]
[1745627798078,0.5818752,94784.0,94783.0,0.5808]
[1745627798274,0.5818752,94784.0,94783.0,0.4128]
[1745627798477,0.5818752,94784.0,94783.0,0.38747223]
[1745627798782,0.5818752,94784.0,94783.0,0.02667223]
[1745627799078,0.5838752,94784.0,94783.0,0.02667223]
[1745627799276,0.5838752,94784.0,94783.0,0.55547223]
[1745627799669,0.5838752,94784.0,94783.0,0.51033049]
[1745627800073,0.5838752,94784.0,94783.0,0.3608]
[1745627801468,0.210893,94776.0,94775.0,0.052]
[1745627801676,0.560893,94776.0,94775.0,0.4128]
[1745627802576,0.560893,94776.0,94775.0,0.4138]
[1745627802983,0.560893,94776.0,94775.0,0.3618]
[1745627803284,0.560893,94776.0,94775.0,0.001]
[1745627803469,0.65737602,94776.0,94775.0,0.001]
[1745627804075,0.65737602,94776.0,94775.0,0.169]
[1745627805885,0.2109153,94766.0,94765.0,0.3608]
[1745627806084,0.5509153,94766.0,94765.0,0.3608]
[1745627806378,0.5509153,94766.0,94765.0,0.5288]
[1745627807977,0.5509153,94766.0,94765.0,0.5338]
[1745627810191,0.5509153,94766.0,94765.0,0.3658]
[1745627811274,0.5509153,94766.0,94765.0,0.5338]
[1745627811882,0.6033153,94766.0,94765.0,0.173]
[1745627812284,0.6698753,94766.0,94765.0,0.173]
[1745627815376,0.6698753,94766.0,94765.0,0.171]
[1745627815587,0.6698753,94766.0,94765.0,0.1476649]
[1745627826095,0.6698753,94766.0,94765.0,0.12232966]
[1745627826683,0.6698753,94766.0,94753.0,0.054]
[1745627826684,0.2109442,94753.0,94752.0,0.0170461]
[1745627826887,0.2109575,94747.0,94746.0,0.0543]
[1745627827093,0.5509575,94747.0,94746.0,0.2223]
[1745627827895,0.5509575,94747.0,94746.0,0.2763]
[1745627828585,0.5539575,94747.0,94746.0,0.2763]
[1745627828789,0.5559575,94747.0,94746.0,0.28974494]
[1745627833589,0.5559575,94747.0,94746.0,0.65054494]
[1745627834096,0.5559575,94747.0,94746.0,0.28974494]
[1745627834394,0.5559575,94747.0,94746.0,0.65054494]
[1745627835999,0.6069575,94747.0,94746.0,0.65054494]
[1745627838395,0.5559575,94747.0,94746.0,0.61472143]
[1745627838700,0.7174575,94747.0,94746.0,0.61472143]
[1745627842102,0.7854575,94747.0,94746.0,0.61472143]
[1745627842300,0.7854575,94747.0,94746.0,0.589381]
[1745627845404,0.7854575,94747.0,94746.0,0.228581]
[1745627846008,0.7854575,94747.0,94746.0,0.2101036]
[1745627848811,0.6239575,94747.0,94746.0,0.2101036]
[1745627850297,0.6239575,94747.0,94746.0,0.18476529]
[1745627856017,0.6772575,94747.0,94746.0,0.18476529]
[1745627856613,0.6092575,94747.0,94746.0,0.18476529]
[1745627856808,0.6771775,94747.0,94746.0,0.18476529]
[1745627857814,0.6771775,94747.0,94746.0,0.54556529]
[1745627861211,0.6771775,94747.0,94746.0,0.18476529]
[1745627861507,0.6771775,94747.0,94746.0,0.14094845]
[1745627862007,0.7315775,94747.0,94746.0,0.14094845]
[1745627869414,0.9068775,94747.0,94746.0,0.11560802]
[1745627870111,0.9068775,94747.0,94746.0,0.09713089]
[1745627871814,0.7315775,94747.0,94746.0,0.09713089]
[1745627872011,0.6238775,94747.0,94746.0,0.66889069]